Workbook

Sheet Loadings (hidden)

Sheet bar Size (hidden)
B1: 2 | C1: 2 | D1: 3 | E1: 7 | G1: 1 | H1: 3 | I1: 1 | J1: 4 | L1: 1 | M1: 3 | N1: 3 | O1: 3
B2: 10 | D2: 10 | G2: 10 | I2: 10 | L2: 10 | N2: 10
B3: 12 | C3: 10 | D3: 12 | E3: 10 | G3: 12 | H3: 10 | I3: 12 | J3: 10 | L3: 12 | M3: 10 | N3: 12 | O3: 10
B4: 16 | C4: 12 | D4: 16 | E4: 12 | G4: 16 | H4: 12 | I4: 16 | J4: 12 | L4: 16 | M4: 12 | N4: 16 | O4: 12
B5: 20 | C5: 16 | D5: 20 | E5: 16 | G5: 20 | H5: 16 | I5: 20 | J5: 16 | L5: 20 | M5: 16 | N5: 20 | O5: 16
B6: 25 | C6: 20 | D6: 25 | E6: 20 | G6: 25 | H6: 20 | I6: 25 | J6: 20 | L6: 25 | M6: 20 | N6: 25 | O6: 20
B7: 32 | C7: 25 | D7: 32 | E7: 25 | G7: 32 | H7: 25 | I7: 32 | J7: 25 | L7: 32 | M7: 25 | N7: 32 | O7: 25
B8: 40 | C8: 32 | D8: 40 | E8: 32 | G8: 40 | H8: 32 | I8: 40 | J8: 32 | L8: 40 | M8: 32 | N8: 40 | O8: 32
C9: 40 | E9: 40 | H9: 40 | J9: 40 | M9: 40 | O9: 40
B11: =IF(B1=1,B2,IF(B1=2,B3,IF(B1=3,B4,IF(B1=4,B5,IF(B1=5,B6,IF(B1=6,B7,B8)))))) -> 12 | C11: 10 | D11: 16 | E11: 32 | G11: =IF(G1=1,G2,IF(G1=2,G3,IF(G1=3,G4,IF(G1=4,G5,IF(G1=5,G6,IF(G1=6,G7,G8)))))) -> 10 | H11: 12 | I11: 10 | J11: 16 | L11: =IF(L1=1,L2,IF(L1=2,L3,IF(L1=3,L4,IF(L1=4,L5,IF(L1=5,L6,IF(L1=6,L7,L8)))))) -> 10 | M11: 12 | N11: 16 | O11: 12

Sheet Reinf (hidden)

Sheet Geometry (hidden)

Sheet Constants (hidden)

Sheet Sheet1 (hidden)
J2: Project: | L2: Project
J3: Location: | L3: Location
J4: Client: | L4: Client
J5: Designed by: | L5: RCF | O5: Checked by: | Q5: RCF
J6: Subject: | L6: @ Grid A-1 | O6: Date: | Q6: 2011-03-26
B7: DESIGN OF RC BEAM AS PER ACI 318-08
B8: Input Data:
B10: Geometry: | N10: Material Properties:
E11: Beam Length, L = | F11: 10 | G11: m | J11: Concrete cover, Cc = | K11: 50 | L11: mm | Q11: Concrete Strength, f'c = | R11: 20.7 | S11: Mpa
E12: Beam Width, B = | F12: 250 | G12: mm | J12: Start Face, SF = | K12: 100 | L12: mm | Q12: Reinf. Yeild Strength, Fy = | R12: 415 | S12: Mpa
E13: Beam Depth, H = | F13: 500 | G13: mm | J13: End Face, EF = | K13: 100 | L13: mm
B15: Loadings:
F16: Mu | I16: Vu | L16: Mu | R16: Mu | U16: Vu
G17: kN-m | J17: kN | M17: kN-m | S17: kN-m | V17: kN
F19: Left Support | N19: Midspan | S19: Right Support
B23: Top Reinf.
C24: Reinf. (Strength) | F24: 51.6695379 | G24: mm2 | I24: 0.02038246071 | L24: 0 | M24: mm2 | O24: 0 | R24: 12.45415577 | S24: mm2 | U24: 0.004912881961
C25: Reinf. (Critical) | F25: 51.6695379 | G25: mm2 | I25: 0.02038246071 | L25: 0 | M25: mm2 | O25: 0 | R25: 12.45415577 | S25: mm2 | U25: 0.004912881961
C27: Trials | F27: Dia 1 | G27: Nos. | I27: Dia 2 | J27: Nos. | L27: Dia 1 | M27: Nos. | O27: Dia 2 | P27: Nos. | R27: Dia 1 | S27: Nos. | U27: Dia 2 | V27: Nos.
C28: Same dia bars | F28: 25 | G28: 11 | L28: 10 | M28: 0 | R28: 20 | S28: 4
C30: Mixed dia bars | F30: 28 | G30: 9 | H30: + | I30: 20 | J30: -1 | N30: + | T30: +
B33: Bottom Reinf.
C34: Reinf. (Strength) | F34: 51.6695379 | G34: mm2 | I34: 0.02038246071 | L34: 0 | M34: mm2 | O34: 0 | R34: 12.45415577 | S34: mm2 | U34: 0.004912881961
C35: Reinf. (Critical) | F35: 51.6695379 | G35: mm2 | I35: 0.02038246071 | L35: 0 | M35: mm2 | O35: 0 | R35: 12.45415577 | S35: mm2 | U35: 0.004912881961
C37: Trials | F37: Dia 1 | G37: Nos. | I37: Dia 2 | J37: Nos. | L37: Dia 1 | M37: Nos. | O37: Dia 2 | P37: Nos. | R37: Dia 1 | S37: Nos. | U37: Dia 2 | V37: Nos.
C38: Same dia bars | F38: 25 | G38: 11 | L38: 10 | M38: 0 | R38: 20 | S38: 4
C40: Mixed dia bars | F40: 28 | G40: 9 | H40: + | I40: 20 | J40: -1 | N40: + | T40: +

Sheet beam
K2: Project: | N2: Project | BL2: Checks:
K3: Location: | N3: Location | BM3: Moment Capacity and Crack Control Checks
K4: Client: | N4: Client | BM4: Left Support:
K5: Job No.: | N5: 1 | R5: Calc. by: | X5: Checked by: | BN5: fMn | BP5: = | BQ5: =G70 -> 266.8216537 | BS5: kN-m | BU5: =K70 -> > Mu = 200 kN-m, O.K.
K6: Subject: | N6: Beam | R6: Date: | U6: 2011-03-26 | X6: Revision: | AA6: - | BN6: Spacing | BP6: = | BQ6: =G153 -> 33.33333333 | BS6: mm | BU6: =K153 -> s(min) <= s(act) <= s(max), O.K.!
B7: ANALYSIS & DESIGN OF RC BEAM AS PER ACI 318-08 | BM7: Midspan:
BN8: fMn | BP8: = | BQ8: =G90 -> 199.4789112 | BS8: kN-m | BU8: =K90 -> > Mu = 150 kN-m, O.K.
B9: INPUT DATA | BN9: Spacing | BP9: = | BQ9: =G160 -> 33.33333333 | BS9: mm | BU9: =K160 -> s(min) <= s(act) <= s(max), O.K.!
B10: MATERIAL PROPERTIES | BM10: Right Support:
C11: fc' | D11: = | E11: 41 | G11: Mpa | I11: CONCRETE STRENGTH | BN11: fMn | BP11: = | BQ11: =G110 -> 236.1992823 | BS11: kN-m | BU11: =K110 -> > Mu = 159 kN-m, O.K.
C12: fy | D12: = | E12: 414 | G12: Mpa | I12: REBAR YIELD STRESS | AH12: COLUMN SUPPORT | AW12: SIMPLY SUPPORTED | BN12: Spacing | BP12: = | BQ12: =G167 -> 50 | BS12: mm | BU12: =K167 -> s(min) <= s(act) <= s(max), O.K.!
C13: fys | D13: = | E13: 414 | G13: Mpa | I13: LINKS YIELD STRESS
C14: Es | D14: = | E14: 200000 | G14: Mpa | I14: Steel Modulus of Elasticity | AI14: CALCULATION of d and d' | AX14: CALCULATION of d and d' | BM14: Shear Capacity and Torsional Capacity Checks
C15: Ec | D15: = | E15: =4700*(E11)^0.5 -> 30094.68392 | G15: Mpa | I15: Ec = 4700*SQRT(f'c) | AI15: LEFT SUPPORT | AX15: LEFT SUPPORT | BN15: Spacing of hoops for seismic provisions
AI16: Layer 1 | AP16: Layer 1 | AX16: Layer 1 | BE16: Layer 1 | BN16: S(max) | BP16: = | BQ16: =G116 -> 80.20833333 | BS16: mm.o.c. | BU16: =G117 -> < 85mm, N.G.
B17: DIMENSIONS | AI17: d = | AJ17: =IF($C$30=0,0,$E$20-$E$21-($D$30/2)) -> 347.5 | AL17: mm | AQ17: d = | AR17: =IF($C$35=0,0,$E$22+($D$35/2)) -> 52.5 | AT17: mm | AX17: d = | AY17: =IF($C$35=0,0,$E$20-$E$22-($D$35/2)) -> 347.5 | BA17: mm | BF17: d = | BG17: =IF($C$30=0,0,$E$21+($D$30/2)) -> 52.5 | BI17: mm | BN17: @2H | BP17: = | BQ17: =2*E20 -> 800 | BS17: mm | BU17: =IF(BQ17<=G39*I39,"<= "&G39*I39&"mm hoops are beyond 2H, O.K.","> "&G39*I39&"mm hoops must be provided @") -> <= 935mm hoops are beyond 2H, O.K.
C18: L | D18: = | E18: 3.15 | G18: m | I18: BEAM LENGTH | AI18: As = | AJ18: =PI()*$D$30^2*0.25*$C$30 -> 1472.621556 | AL18: mm^2 | AQ18: As = | AR18: =PI()*$D$35^2*0.25*$C$35 -> 981.7477042 | AT18: mm^2 | AX18: As = | AY18: =PI()*$D$35^2*0.25*$C$35 -> 981.7477042 | BA18: mm^2 | BF18: As = | BG18: =PI()*$D$30^2*0.25*$C$30 -> 1472.621556 | BI18: mm^2 | BU18: =IF(BQ17<=G39*I39,"","distance 2H from face of support.") -> 
C19: B | D19: = | E19: 200 | G19: mm | I19: BEAM WIDTH | BN19: fVn | BP19: = | BQ19: =G122 -> 97.09435062 | BS19: kN | BU19: =K122 -> <Vu =150 kN, not O.K.
C20: H | D20: = | E20: 400 | G20: mm | I20: BEAM HEIGHT | AI20: Layer 2 | AP20: Layer 1 | AX20: Layer 2 | BE20: Layer 1 | BN20: Av(min) | BP20: = | BQ20: =G126 -> 67.12453911 | BS20: mm2 | BU20: =K126 -> <= Av(prov) = 157.08 mm^2, O.K.
C21: Ct | D21: = | E21: 40 | G21: mm | I21: COVER TO TOP REINFORCEMENT | AI21: d = | AJ21: =IF($F$30=0,0,$E$20-$E$21-$D$30-$I$30-($G$30/2)) -> 300 | AL21: mm | AQ21: d = | AR21: =IF($F$35=0,0,$E$22+$D$35+$I$35+($G$35/2)) -> 102.5 | AT21: mm | AX21: d = | AY21: =IF($F$35=0,0,$E$20-$E$22-$D$35-$I$35-($G$35/2)) -> 297.5 | BA21: mm | BF21: d = | BG21: =IF($F$30=0,0,$E$21+$D$30+$I$30+($G$30/2)) -> 100 | BI21: mm | BN21: s(max) | BP21: = | BQ21: 160.4166667 | BS21: mm.o.c. | BU21: < s = 350 mm, N.G.
C22: Cc | D22: = | E22: 40 | G22: mm | I22: COVER TO BOTTOM REINFORCEMENT | AI22: As = | AJ22: =PI()*$G$30^2*0.25*$F$30 -> 1884.955592 | AL22: mm^2 | AQ22: As = | AR22: =PI()*$G$35^2*$F$35*0.25 -> 981.7477042 | AT22: mm^2 | AX22: As = | AY22: =PI()*$G$35^2*0.25*$F$35 -> 981.7477042 | BA22: mm^2 | BF22: As = | BG22: =PI()*$G$30^2*$F$30*0.25 -> 1884.955592 | BI22: mm^2
C23: Cs | D23: = | E23: 40 | G23: mm | I23: COVER TO SIDE BARS | BN23: Tumax | BP23: = | BQ23: =G131 -> N.A. | BS23: kN-m | BU23: =K131 -> 
AI24: As = | AJ24: =$AJ$18+$AJ$22 -> 3357.577149 | AL24: mm^2 | AQ24: A's = | AR24: =AR18+AR22 -> 1963.495408 | AT24: mm^2 | AX24: As = | AY24: =$AY$18+$AY$22 -> 1963.495408 | BA24: mm^2 | BF24: A's = | BG24: =$BG$18+$BG$22 -> 3357.577149 | BI24: mm^2 | BN24: Atreq'd | BP24: = | BQ24: =G133 -> N.A. | BS24: mm2 | BU24: =K133 -> 
B25: STEEL REINFORCEMENT | AI25: d = | AJ25: =IF($AJ$24=0,0,($AJ$17*$AJ$18+$AJ$21*$AJ$22)/$AJ$24) -> 320.8333333 | AL25: mm | AQ25: d' = | AR25: =IF(AR24=0,0,(AR17*AR18+AR21*AR22)/(AR24)) -> 77.5 | AT25: mm | AX25: d = | AY25: =IF($AY$24=0,0,($AY$17*$AY$18+$AY$21*$AY$22)/$AY$24) -> 322.5 | BA25: mm | BF25: d' = | BG25: =IF($BG$24=0,0,($BG$17*$BG$18+$BG$21*$BG$22)/($BG$24)) -> 79.16666667 | BI25: mm | BN25: Atmin | BP25: = | BQ25: N.A. | BS25: mm2
C26: LEFT SUPPORT | L26: MIDSPAN | U26: RIGHT SUPPORT | BN26: Alprov | BP26: = | BQ26: =G137 -> 1963.495408 | BS26: mm2 | BU26: =K137 -> add'l web bars are not required!
C27: TOP REINFORCEMENT | L27: TOP REINFORCEMENT | U27: TOP REINFORCEMENT | AI27: CALCULATION of d and d'
C28: layer 1 | F28: layer 2 | I28: layer space | L28: layer 1 | O28: layer 2 | R28: layer space | U28: layer 1 | X28: layer 2 | AA28: layer space | AI28: MIDSPAN
C29: no. | D29: mm | F29: no. | G29: mm | L29: no. | M29: mm | O29: no. | P29: mm | U29: no. | V29: mm | X29: no. | Y29: mm | AI29: Layer 1 | AP29: Layer 1
C30: 3 | D30: 25 | F30: 6 | G30: 20 | I30: 25 | L30: 2 | M30: 25 | O30: 3 | P30: 25 | R30: 25 | U30: 2 | V30: 25 | X30: 3 | Y30: 25 | AA30: 25 | AI30: d = | AJ30: =IF($L$35=0,0,$E$20-$E$22-($M$35/2)) -> 347.5 | AL30: mm | AQ30: d = | AR30: =IF($L$30=0,0,$E$21+($M$30/2)) -> 52.5 | AT30: mm
AI31: As = | AJ31: =PI()*$M$35^2*0.25*$L$35 -> 1472.621556 | AL31: mm^2 | AQ31: As = | AR31: =PI()*$M$30^2*0.25*$L$30 -> 981.7477042 | AT31: mm^2
C32: BOTTOM REINFORCEMENT | L32: BOTTOM REINFORCEMENT | U32: BOTTOM REINFORCEMENT
C33: layer 1 | F33: layer 2 | I33: layer space | L33: layer 1 | O33: layer 2 | R33: layer space | U33: layer 1 | X33: layer 2 | AA33: layer space | AI33: Layer 2 | AP33: Layer 1
C34: no. | D34: mm | F34: no. | G34: mm | L34: no. | M34: mm | O34: no. | P34: mm | U34: no. | V34: mm | X34: no. | Y34: mm | AI34: d = | AJ34: =IF($O$35=0,0,$E$20-$E$22-$M$35-$R$35-($P$35/2)) -> 302 | AL34: mm | AQ34: d = | AR34: =IF($O$30=0,0,$E$21+$M$30+$R$30+($P$30/2)) -> 102.5 | AT34: mm
C35: 2 | D35: 25 | F35: 2 | G35: 25 | I35: 25 | L35: 3 | M35: 25 | O35: 2 | P35: 16 | R35: 25 | U35: 2 | V35: 25 | X35: 3 | Y35: 25 | AA35: 25 | AI35: As = | AJ35: =PI()*$P$35^2*0.25*$O$35 -> 402.1238597 | AL35: mm^2 | AQ35: As = | AR35: =PI()*$P$30^2*$O$30*0.25 -> 1472.621556 | AT35: mm^2
C37: HOOPS | L37: STIRRUPS | U37: ADDITIONAL LONGITUDINAL BARS | AI37: As = | AJ37: =AJ31+AJ35 -> 1874.745416 | AL37: mm^2 | AQ37: A's = | AR37: =AR31+AR35 -> 2454.369261 | AT37: mm^2
C38: no. | E38: spacing | G38: no. | I38: spacing | L38: legs | N38: mm | P38: spacing | W38: no. | Y38: mm | AI38: d = | AJ38: =IF(AJ37=0,0,(AJ30*AJ31+AJ34*AJ35)/AJ37) -> 337.7404692 | AL38: mm | AQ38: d' = | AR38: =IF(AR37=0,0,(AR30*AR31+AR34*AR35)/(AR37)) -> 82.5 | AT38: mm
C39: 1 | E39: 50 | G39: 11 | I39: 85 | L39: 2 | N39: 10 | P39: 350 | W39: 4 | Y39: 10
AI40: CALCULATION of d and d' | AX40: CALCULATION of d and d'
C41: APPLIED FORCES | AI41: RIGHT SUPPORT | AX41: RIGHT SUPPORT
D42: LEFT SUPPORT | M42: MIDSPAN | V42: RIGHT SUPPORT | AI42: Layer 1 | AP42: Layer 1 | AX42: Layer 1 | BE42: Layer 1
D43: Mu | E43: = | F43: 200 | H43: kN-m | M43: Mu | N43: = | O43: 150 | Q43: kN-m | V43: Mu | W43: = | X43: 159 | Z43: kN-m | AI43: d = | AJ43: =IF($U$30=0,0,$E$20-$E$21-($V$30/2)) -> 347.5 | AL43: mm | AQ43: d = | AR43: =IF($U$35=0,0,$E$22+($V$35/2)) -> 52.5 | AT43: mm | AX43: d = | AY43: =IF($U$35=0,0,$E$20-$E$22-($V$35/2)) -> 347.5 | BA43: mm | BF43: d = | BG43: =IF($U$30=0,0,$E$21+($V$30/2)) -> 52.5 | BI43: mm
D44: Ma | E44: = | F44: 50 | H44: kN-m | M44: Ma | N44: = | O44: 25 | Q44: kN-m | V44: Ma | W44: = | X44: 43 | Z44: kN-m | AI44: As = | AJ44: =PI()*$V$30^2*0.25*$U$30 -> 981.7477042 | AL44: mm^2 | AQ44: As = | AR44: =PI()*$V$35^2*0.25*$U$35 -> 981.7477042 | AT44: mm^2 | AX44: As = | AY44: =PI()*$V$35^2*0.25*$U$35 -> 981.7477042 | BA44: mm^2 | BF44: As = | BG44: =PI()*$V$30^2*0.25*$U$30 -> 981.7477042 | BI44: mm^2
D45: Vu | E45: = | F45: 150 | H45: kN | V45: Vu | W45: = | X45: 76 | Z45: kN
D46: Tu | E46: = | H46: kN-m | V46: Tu | W46: = | Z46: kN-m | AI46: Layer 2 | AP46: Layer 1 | AX46: Layer 2 | BE46: Layer 1
D47: Pu | E47: = | H47: kN-m | V47: Pu | W47: = | Z47: kN-m | AI47: d = | AJ47: =IF($X$30=0,0,$E$20-$E$21-$V$30-$AA$30-($Y$30/2)) -> 297.5 | AN47: mm | AQ47: d = | AR47: =IF($X$35=0,0,$E$22+$V$35+$AA$35+($Y$35/2)) -> 102.5 | AT47: mm | AX47: d = | AY47: =IF($X$35=0,0,$E$20-$E$22-$V$35-$AA$35-($Y$35/2)) -> 297.5 | BC47: mm | BF47: d = | BG47: =IF($X$30=0,0,$E$21+$V$30+$AA$30+($Y$30/2)) -> 102.5 | BI47: mm
AI48: As = | AJ48: =PI()*$Y$30^2*0.25*$X$30 -> 1472.621556 | AN48: mm^2 | AQ48: As = | AR48: =PI()*$Y$35^2*$X$35*0.25 -> 1472.621556 | AT48: mm^2 | AX48: As = | AY48: =PI()*$Y$35^2*0.25*$X$35 -> 1472.621556 | BC48: mm^2 | BF48: As = | BG48: =PI()*$Y$30^2*$X$30*0.25 -> 1472.621556 | BI48: mm^2
C50: OUTPUT RESULTS | AI50: As = | AJ50: =AJ44+AJ48 -> 2454.369261 | AN50: mm^2 | AQ50: A's = | AR50: =AR44+AR48 -> 2454.369261 | AT50: mm^2 | AX50: As = | AY50: =$AY$44+$AY$48 -> 2454.369261 | BC50: mm^2 | BF50: A's = | BG50: =$BG$44+$BG$48 -> 2454.369261 | BI50: mm^2
C51: FLEXURAL CAPACITY CHECKS | AI51: d = | AJ51: =IF(AJ50=0,0,(AJ43*AJ44+AJ47*AJ48)/AJ50) -> 317.5 | AN51: mm | AQ51: d' = | AR51: =IF(AR50=0,0,(AR43*AR44+AR47*AR48)/(AR50)) -> 82.5 | AT51: mm | AX51: d = | AY51: =IF($AY$50=0,0,($AY$43*$AY$44+$AY$47*$AY$48)/$AY$50) -> 317.5 | BC51: mm | BF51: d' = | BG51: =IF($BG$50=0,0,($BG$43*$BG$44+$BG$47*$BG$48)/($BG$50)) -> 82.5 | BI51: mm
D52: LEFT SUPPORT
D53: b1 | F53: = | G53: =IF($E$11>28,MAX(0.85-(0.05*($E$11-28)/7),0.65),0.85) -> 0.7571428571 | K53: b1 = max. of: 0.85-(0.05*(f'c-28)/7) and 0.65
D54: c | F54: = | G54: =(-((IF(($C$30+$F$30)>($C$35+$F$35),$AR$24,$BG$24)*$G$63*$E$14)-(IF(($C$30+$F$30)>($C$35+$F$35),$AJ$24,$AY$24)*$E$12))+SQRT((((IF(($C$30+$F$30)>($C$35+$F$35),$AR$24,$BG$24)*$G$63*$E$14)-(IF(($C$30+$F$30)>($C$35+$F$35),$AJ$24,$AY$24)*$E$12))^2)-((4*0.85*$E$11*$G$53*$E$19)*(-(IF(($C$30+$F$30)>($C$35+$F$35),$AR$24,$BG$24)*$G$63*$E$14*IF(($C$30+$F$30)>($C$35+$F$35),$AR$25,$BG$25))))))/(2*0.85*$E$11*$G$53*$E$19) -> 153.137734 | I54: mm | K54: Solve for "c" in: As*fy = 0.85*f'c*b1*c*b+A's*(c-d')/c*ec*Es | AH54: SHEAR CAPACITY CHECKS
D55: a | F55: = | G55: =$G$53*$G$54 -> 115.9471414 | I55: mm | K55: a = b1*c | AI55: LEFT SUPPORT
D56: r | F56: = | G56: =IF(($C$30+$F$30)>($C$35+$F$35),$AJ$24,$AY$24)/($E$19*IF(($C$30+$F$30)>($C$35+$F$35),$AJ$25,$AY$25)) -> 0.05232587764 | K56: r = As/(b*d) | AJ56: f = | AK56: 0.75 | AO56: f = capacity reduction factor for shear
D57: r(min) | F57: = | G57: =MAX(0.25*SQRT($E$11)/$E$12,1.4/$E$12) -> 0.003866620916 | K57: r(min) >= 0.25*SQRT(f'c)/fy >= 1.4/fy | AJ57: fVc = | AK57: =$AK$56*0.17*SQRT($E$11)*$E$19*IF(($C$30+$F$30)>($C$35+$F$35),$AJ$25,$AY$25)/1000 -> 52.38556017 | AM57: kN | AO57: fVc = 0.17*l*SQRT(f'c)bd
D58: rb | F58: = | G58: =0.85*$G$73*$E$11/$E$12*(600/(600+$E$12)) -> 0.03771321581 | K58: rb = 0.85*b1*f'c/fy*(600/(600+fy)
D59: rg | F59: = | G59: =(IF(($C$30+$F$30)>($C$35+$F$35),$AJ$24,$AY$24)+IF(($C$30+$F$30)>($C$35+$F$35),$AR$24,$BG$24))/($E$19*$E$20) -> 0.06651340696 | K59: rg = (As+A's)/(b*h) | AJ59: fVs = | AK59: =($AK$56*$E$13*IF(($C$30+$F$30)>($C$35+$F$35),$AJ$25,$AY$25)*(PI()*0.25*$N$39^2*$L$39)/$P$39)/1000 -> 44.70879045 | AM59: kN | AO59: fVs = f*fy*d*Av(stirrup)/s >= 0
D60: r(max) | F60: = | G60: =IF($G$84>=0.005,$G$82/($E$19*IF(($C$30+$F$30)>($C$35+$F$35),$AJ$25,$AY$25)),"N.A.") -> N.A. | K60: r(max) = As(max)/(b*d) | AJ60: fVs(req'd) = | AK60: =MAX($F$45-$AK$57,0) -> 97.61443983 | AM60: kN | AO60: fVs(req'd) = (Vu-fVc) >= 0
D61: As(min) | F61: = | G61: =$G$57*$E$19*IF(($C$30+$F$30)>($C$35+$F$35),$AJ$25,$AY$25) -> 248.1081755 | I61: mm2 | K61: As(min) = r(min)*b*d | AJ61: fVn = | AK61: =$AK$57+$AK$59 -> 97.09435062 | AM61: kN | AO61: fVn = fVc+fVs
D62: As(max) | F62: = | G62: =((0.85*$E$11*$G$73*(($G$83*IF(($C$30+$F$30)>($C$35+$F$35),$AJ$25,$AY$25))/($G$83+0.005))*$E$19)+(IF(($C$30+$F$30)>($C$35+$F$35),$AR$24,$BG$24)*(((($G$83*IF(($C$30+$F$30)>($C$35+$F$35),$AJ$25,$AY$25))/($G$83+0.005))-IF(($C$30+$F$30)>($C$35+$F$35),$AR$25,$BG$25))/(($G$83*IF(($C$30+$F$30)>($C$35+$F$35),$AJ$25,$AY$25))/($G$83+0.005)))*$G$83*$E$14))/$E$12 -> 2546.237819 | I62: mm2 | K62: As(max) = (0.85*f'c*b1*c*b+A's*(c-d')/c*ec*Es)/fy for c = ec*d/(ec+0.005) | AJ62: fVs(max) = | AK62: =(0.66*$AK$56*SQRT($E$11)*$E$19*IF(($C$30+$F$30)>($C$35+$F$35),$AJ$25,$AY$25))/1000 -> 203.3792336 | AM62: kN | AO62: fVs(max) = 0.66*f*SQRT(f'c)*b*d
D63: ec | F63: = | G63: 0.003 | K63: ec = 0.003 (assumed concrete strain) | AJ63: Av(prov) = | AK63: =PI()*0.25*$N$39^2*$L$39 -> 157.0796327 | AM63: mm2 | AO63: Av(prov) = Av(stirrup)
D64: e's | F64: = | G64: =$G$83*($G$54-IF(($C$30+$F$30)>($C$35+$F$35),$AR$25,$BG$25))/$G$54 -> 0.001481758911 | K64: e's = ec*(c-d')/c | P64: =IF($G$64>=$E$12/$E$14,">= fy/Es, f's yields","< fy/Es, f's does not yield") -> < fy/Es, f's does not yield | AJ64: Av(min) = | AK64: =IF($F$45>($AK$57/2),MAX(0.062*SQRT($E$11)*$E$19*$P$39/$E$13,0.35*$E$19*$P$39/$E$13),0) -> 67.12453911 | AM64: mm2 | AO64: Av(min) = for Vu > fVc/2 then max. of 0.062*sqrt(f'c)*b*s/fy or 0.35*b*s/fy
D65: f's | F65: = | G65: =IF($G$64*$E$14>=$E$12,$E$12,$G$64*$E$14) -> 296.3517822 | I65: Mpa | K65: f's = e's*Es | AJ65: Av(req'd) = | AK65: =MAX(($F$45*1000)-($AK$56*$AK$57*1000),0)*$P$39/($AK$56*$E$13*IF(($C$30+$F$30)>($C$35+$F$35),$AJ$25,$AY$25)) -> 388.9708559 | AM65: mm2 | AO65: Av(req'd) = (Vu-fVc)*s/(f*fy*d)
D66: As2 | F66: = | G66: =IF($G$65>0,IF(($C$30+$F$30)>($C$35+$F$35),$AR$24,$BG$24)*$G$65/$E$12,"N.A.") -> 1405.520202 | I66: mm2 | K66: As2 = A's*f's/fy for f's > 0 | AJ66: s(max) = | AK66: =IF($AK$59<=$AK$56*0.33*SQRT($E$11)*$E$19*IF(($C$30+$F$30)>($C$35+$F$35),$AJ$25,$AY$25),IF($F$45>$AK$57/2,MIN(IF(($C$30+$F$30)>($C$35+$F$35),$AJ$25,$AY$25)/2,600),"N.A."),MIN(IF(($C$30+$F$30)>($C$35+$F$35),$AJ$25,$AY$25)/4,600/2)) -> 160.4166667 | AM66: mm2 | AO66: s(max) = for fVs<= f*0.33*SQRT(f'c)*b*d and Vu > fVc/2 then min. of: d/2 or 600mm
D67: As1 | F67: = | G67: =IF($G$65>0,IF(($C$30+$F$30)>($C$35+$F$35),$AJ$24,$AY$24)-$G$66,"N.A.") -> 1952.056946 | I67: mm2 | K67: As1 = As-As2 for f's > 0 | AO67: s(max) = for fVs<= f*0.33*SQRT(f'c)*b*d and Vu <= fVc/2 then N.A.
D68: et | F68: = | G68: =IF($G$54>=IF(($C$30+$F$30)>($C$35+$F$35),$AJ$25,$AY$25),0,$G$63*((IF(($C$30+$F$30)>($C$35+$F$35),$AJ$25,$AY$25)-IF($G$65>=0,$G$54,((IF(($C$30+$F$30)>($C$35+$F$35),$AJ$24,$AY$24)*$E$12)/(0.85*$E$11*$E$19)/$G$53)))/IF($G$65>=0,$G$54,((IF(($C$30+$F$30)>($C$35+$F$35),$AJ$24,$AY$24)*$E$12)/(0.85*$E$11*$E$19)/$G$53)))) -> 0.003285191605 | K68: et = ec*(d-c)/c = (fy/Es+ec)/(r/rb)-ec | U68: =IF($G$68>=0.005,">= 0.005, Tension-controlled",IF(AND($G$68>$E$12/$E$14,$G$68<0.005),"Transition section",IF($G$68<=$E$12/$E$14,"<= fy/Es, Compression-controlled"))) -> Transition section | AO68: s(max) = for fVs > f*0.33*SQRT(f'c)*b*d then min. of: d/4 or 300mm
D69: f | F69: = | G69: =IF($G$68>=0.005,0.9,IF(AND($G$68>$E$12/$E$14,$G$68<0.005),0.65+0.25*($G$68-$E$12/$E$14)/(0.005-$E$12/$E$14),IF($G$68<=$E$12/$E$14,0.65))) -> 0.7536852905 | K69: f = 0.65+0.25*(et-fy/Es)/(0.005-fy/Es) <= 0.90
D70: fMn | F70: = | G70: =IF($G$65<=0,$G$69*(IF(($C$30+$F$30)>($C$35+$F$35),$AJ$24,$AY$24)*$E$12*(IF(($C$30+$F$30)>($C$35+$F$35),$AJ$25,$AY$25)-(0.5*IF(($C$30+$F$30)>($C$35+$F$35),$AJ$24,$AY$24)*$E$12/(0.85*$E$11*$E$19))))/1000000,$G$69*((($G$67*$E$12)*(IF(($C$30+$F$30)>($C$35+$F$35),$AJ$25,$AY$25)-($G$55/2)))+(IF(($C$30+$F$30)>($C$35+$F$35),$AR$24,$BG$24)*$G$65*(IF(($C$30+$F$30)>($C$35+$F$35),$AJ$25,$AY$25)-IF(($C$30+$F$30)>($C$35+$F$35),$AR$25,$BG$25))))/1000000) -> 266.8216537 | I70: kN-m | K70: =IF($G$70>$F$43,"> Mu = "&$F$43&" kN-m, O.K.","< Mu = "&$F$43&" kN-m, Failed!") -> > Mu = 200 kN-m, O.K. | AI70: RIGHT SUPPORT
AJ71: f = | AK71: 0.75 | AO71: f = capacity reduction factor for shear
D72: MIDSPAN | AJ72: fVc = | AK72: =$AK$71*0.17*SQRT($E$11)*$E$19*IF(($U$30+$X$30)>($U$35+$X$35),$AJ$51,$AY$51)/1000 -> 51.84129461 | AM72: kN | AO72: fVc = 0.17*l*SQRT(f'c)bd
D73: b1 | F73: = | G73: =IF($E$11>28,MAX(0.85-(0.05*($E$11-28)/7),0.65),0.85) -> 0.7571428571 | K73: b1 = max. of: 0.85-(0.05*(f'c-28)/7) and 0.65
D74: c | F74: = | G74: =(-(($AR$37*$G$83*$E$14)-($AJ$37*$E$12))+SQRT(((($AR$37*$G$83*$E$14)-($AJ$37*$E$12))^2)-((4*0.85*$E$11*$G$73*$E$19)*(-($AR$37*$G$83*$E$14*$AR$38)))))/(2*0.85*$E$11*$G$73*$E$19) -> 99.46872219 | I74: mm | K74: Solve for "c" in: As*fy = 0.85*f'c*b1*c*b+A's*(c-d')/c*ec*Es | AJ74: fVs = | AK74: =($AK$71*$E$13*IF(($U$30+$X$30)>($U$35+$X$35),$AJ$51,$AY$51)*(PI()*0.25*$N$39^2*$L$39)/$P$39)/1000 -> 44.24428354 | AM74: kN | AO74: fVs = f*fy*d*Av(stirrup)/s >= 0
D75: a | F75: = | G75: =$G$73*$G$74 -> 75.31203252 | I75: mm | K75: a = b1*c | AJ75: fVs(req'd) = | AK75: =MAX($X$45-$AK$72,0) -> 24.15870539 | AM75: kN | AO75: fVs(req'd) = (Vu-fVc) >= 0
D76: r | F76: = | G76: =$AJ$37/($E$19*$AJ$38) -> 0.02775423124 | K76: r = As/(b*d) | AJ76: fVn = | AK76: =$AK$72+$AK$74 -> 96.08557814 | AM76: kN | AO76: fVn = fVc+fVs
D77: r(min) | F77: = | G77: =MAX(0.25*SQRT($E$11)/$E$12,1.4/$E$12) -> 0.003866620916 | K77: r(min) >= 0.25*SQRT(f'c)/fy >= 1.4/fy | AJ77: fVs(max) = | AK77: =(0.66*$AK$71*SQRT($E$11)*$E$19*IF(($U$30+$X$30)>($U$35+$X$35),$AJ$51,$AY$51))/1000 -> 201.2662026 | AM77: kN | AO77: fVs(max) = 0.66*f*SQRT(f'c)*b*d
D78: rb | F78: = | G78: =0.85*$G$73*$E$11/$E$12*(600/(600+$E$12)) -> 0.03771321581 | K78: rb = 0.85*b1*f'c/fy*(600/(600+fy) | AJ78: Av(prov) = | AK78: =PI()*0.25*$N$39^2*$L$39 -> 157.0796327 | AM78: mm2 | AO78: Av(prov) = Av(stirrup)
D79: rg | F79: = | G79: =($AJ$37+$AR$37)/($E$19*$E$20) -> 0.05411393346 | K79: rg = (As+A's)/(b*h) | AJ79: Av(min) = | AK79: =IF($X$45>($AK$72/2),MAX(0.062*SQRT($E$11)*$E$19*$P$39/$E$13,0.35*$E$19*$P$39/$E$13),0) -> 67.12453911 | AM79: mm2 | AO79: Av(min) = for Vu > fVc/2 then max. of 0.062*sqrt(f'c)*b*s/fy or 0.35*b*s/fy
D80: r(max) | F80: = | G80: =IF($G$84>=0.005,$G$82/($E$19*$AJ$38),"N.A.") -> N.A. | K80: r(max) = As(max)/(b*d) | AJ80: Av(req'd) = | AK80: =MAX(($X$45*1000)-($AK$71*$AK$72*1000),0)*$P$39/($AK$71*$E$13*IF(($C$30+$F$30)>($C$35+$F$35),$AJ$25,$AY$25)) -> 130.4138043 | AM80: mm2 | AO80: Av(req'd) = (Vu-fVc)*s/(f*fy*d)
D81: As(min) | F81: = | G81: =$G$77*$E$19*$AJ$38 -> 261.1828725 | I81: mm2 | K81: As(min) = r(min)*b*d | AJ81: s(max) = | AK81: =IF($AK$74<=$AK$71*0.33*SQRT($E$11)*$E$19*IF(($U$30+$X$30)>($U$35+$X$35),$AJ$51,$AY$51),IF($X$45>$AK$72/2,MIN(IF(($U$30+$X$30)>($U$35+$X$35),$AJ$51,$AY$51)/2,600),"N.A."),MIN(IF(($U$30+$X$30)>($U$35+$X$35),$AJ$51,$AY$51)/4,600/2)) -> 158.75 | AM81: mm2 | AO81: s(max) = for fVs<= f*0.33*SQRT(f'c)*b*d and Vu > fVc/2 then min. of: d/2 or 600mm
D82: As(max) | F82: = | G82: =((0.85*$E$11*$G$73*(($G$83*$AJ$38)/($G$83+0.005))*$E$19)+($AR$37*(((($G$83*$AJ$38)/($G$83+0.005))-$AR$38)/(($G$83*$AJ$38)/($G$83+0.005)))*$G$83*$E$14))/$E$12 -> 2854.483793 | I82: mm2 | K82: As(max) = (0.85*f'c*b1*c*b+A's*(c-d')/c*ec*Es)/fy for c = ec*d/(ec+0.005) | AO82: s(max) = for fVs<= f*0.33*SQRT(f'c)*b*d and Vu <= fVc/2 then N.A.
D83: ec | F83: = | G83: 0.003 | K83: ec = 0.003 (assumed concrete strain) | AO83: s(max) = for fVs > f*0.33*SQRT(f'c)*b*d then min. of: d/4 or 300mm
D84: e's | F84: = | G84: =$G$83*($G$74-$AR$38)/$G$74 -> 0.0005117806428 | K84: e's = ec*(c-d')/c | P84: =IF($G$84>=$E$12/$E$14,">= fy/Es, f's yields","< fy/Es, f's does not yield") -> < fy/Es, f's does not yield
D85: f's | F85: = | G85: =IF($G$84*$E$14>=$E$12,$E$12,$G$84*$E$14) -> 102.3561286 | I85: Mpa | K85: f's = e's*Es | AI85: Special Seismic Provision for Transverse Reinforcements
D86: As2 | F86: = | G86: =IF($G$85>0,$AR$37*$G$85/$E$12,"N.A.") -> 606.8109555 | I86: mm2 | K86: As2 = A's*f's/fy for f's > 0 | AJ86: S(max)= | AK86: =MIN(IF(($C$30+$F$30)>($C$35+$F$35),$AJ$25,$AY$25)/4,8*MIN($D$30,$G$30,$D$35,$G$35,$M$30,$P$30,$M$35,$P$35,$V$30,$Y$30,$V$35,$Y$35),24*$E$39,300) -> 80.20833333 | AM86: mm.o.c. | AO86: S(max) = d/4
D87: As1 | F87: = | G87: =IF($G$85>0,$AJ$37-$G$86,"N.A.") -> 1267.934461 | I87: mm2 | K87: As1 = As-As2 for f's > 0 | AO87: S(max) = 8db (smallest longitudinal bar)
D88: et | F88: = | G88: =IF($G$74>=$AJ$38,0,$G$83*(($AJ$38-IF($G$85>=0,$G$74,(($AJ$37*$E$12)/(0.85*$E$11*$E$19)/$G$73)))/IF($G$85>=0,$G$74,(($AJ$37*$E$12)/(0.85*$E$11*$E$19)/$G$73)))) -> 0.007186331796 | K88: et = ec*(d-c)/c = (fy/Es+ec)/(r/rb)-ec | U88: =IF($G$88>=0.005,">= 0.005, Tension-controlled",IF(AND($G$88>$E$12/$E$14,$G$88<0.005),"Transition section",IF($G$88<=$E$12/$E$14,"<= fy/Es, Compression-controlled"))) -> >= 0.005, Tension-controlled | AO88: S(max) = 24db (diameter of hoop bar)
D89: f | F89: = | G89: =IF($G$88>=0.005,0.9,IF(AND($G$88>$E$12/$E$14,$G$88<0.005),0.65+0.25*($G$88-$E$12/$E$14)/(0.005-$E$12/$E$14),IF($G$88<=$E$12/$E$14,0.65))) -> 0.9 | K89: f = 0.65+0.25*(et-fy/Es)/(0.005-fy/Es) <= 0.90 | AO89: S(max) = 300mm
D90: fMn | F90: = | G90: =IF($G$85<=0,$G$89*($AJ$37*$E$12*($AJ$38-(0.5*$AJ$37*$E$12/(0.85*$E$11*$E$19))))/1000000,$G$89*((($G$87*$E$12)*($AJ$38-($G$75/2)))+($AR$37*$G$85*($AJ$38-$AR$38)))/1000000) -> 199.4789112 | I90: kN-m | K90: =IF($G$90>$O$43,"> Mu = "&$O$43&" kN-m, O.K.","< Mu = "&$O$43&" kN-m, Failed!") -> > Mu = 150 kN-m, O.K.
D92: RIGHT SUPPORT | AH92: FOR TORSION:
D93: b1 | F93: = | G93: =IF($E$11>28,MAX(0.85-(0.05*($E$11-28)/7),0.65),0.85) -> 0.7571428571 | K93: b1 = max. of: 0.85-(0.05*(f'c-28)/7) and 0.65 | AJ93: f = | AK93: 0.75 | AO93: f = capacity reduction factor for torsion
D94: c | F94: = | G94: =(-((IF(($U$30+$X$30)>($U$35+$X$35),$AR$50,$BG$50)*$G$103*$E$14)-(IF(($U$30+$X$30)>($U$35+$X$35),$AJ$50,$AY$50)*$E$12))+SQRT((((IF(($U$30+$X$30)>($U$35+$X$35),$AR$50,$BG$50)*$G$103*$E$14)-(IF(($U$30+$X$30)>($U$35+$X$35),$AJ$50,$AY$50)*$E$12))^2)-((4*0.85*$E$11*$G$93*$E$19)*(-(IF(($U$30+$X$30)>($U$35+$X$35),$AR$50,$BG$50)*$G$103*$E$14*IF(($U$30+$X$30)>($U$35+$X$35),$AR$51,$BG$51))))))/(2*0.85*$E$11*$G$93*$E$19) -> 114.5204437 | I94: mm | K94: Solve for "c" in: As*fy = 0.85*f'c*b1*c*b+A's*(c-d')/c*ec*Es | AJ94: xo = | AK94: =E19-(2*E23) -> 120 | AM94: mm | AO94: xo = b-2*Cs
D95: a | F95: = | G95: =$G$93*$G$94 -> 86.70833596 | I95: mm | K95: a = b1*c | AJ95: yo = | AK95: =E20-(E22+E21) -> 320 | AM95: mm | AO95: yo = h-(Ct+Cc)
D96: r | F96: = | G96: =IF(($U$30+$X$30)>($U$35+$X$35),$AJ$50,$AY$50)/($E$19*IF(($U$30+$X$30)>($U$35+$X$35),$AJ$51,$AY$51)) -> 0.03865148442 | K96: r = As/(b*d) | AJ96: Acp = | AK96: =E19*E20 -> 80000 | AM96: mm2 | AO96: Acp = b*h
D97: r(min) | F97: = | G97: =MAX(0.25*SQRT($E$11)/$E$12,1.4/$E$12) -> 0.003866620916 | K97: r(min) >= 0.25*SQRT(f'c)/fy >= 1.4/fy | AJ97: Ag = | AK97: =E19*E20 -> 80000 | AM97: mm2 | AO97: Ag = b*h
D98: rb | F98: = | G98: =0.85*$G$73*$E$11/$E$12*(600/(600+$E$12)) -> 0.03771321581 | K98: rb = 0.85*b1*f'c/fy*(600/(600+fy) | AJ98: Pcp = | AK98: =2*(E19+E20) -> 1200 | AM98: mm | AO98: Pcp = 2*(b+h)
D99: rg | F99: = | G99: =(IF(($U$30+$X$30)>($U$35+$X$35),$AJ$50,$AY$50)+IF(($U$30+$X$30)>($U$35+$X$35),$AR$50,$BG$50))/($E$19*$E$20) -> 0.06135923152 | K99: rg = (As+A's)/(b*h) | AJ99: Ph = | AK99: =(AK94+AK95) -> 440 | AM99: mm | AO99: Ph = 2*(xo+yo)
D100: r(max) | F100: = | G100: =IF($G$84>=0.005,$G$82/($E$19*IF(($U$30+$X$30)>($U$35+$X$35),$AJ$51,$AY$51)),"N.A.") -> N.A. | K100: r(max) = As(max)/(b*d) | AJ100: Aoh = | AK100: =AK94*AK95 -> 38400 | AM100: mm2 | AO100: Aoh = xo*yo
D101: As(min) | F101: = | G101: =$G$97*$E$19*IF(($U$30+$X$30)>($U$35+$X$35),$AJ$51,$AY$51) -> 245.5304282 | I101: mm2 | K101: As(min) = r(min)*b*d | AJ101: Ao = | AK101: =0.85*AK100 -> 32640 | AM101: mm2 | AO101: Ao = 0.85*Aoh
D102: As(max) | F102: = | G102: =((0.85*$E$11*$G$93*(($G$103*IF(($U$30+$X$30)>($U$35+$X$35),$AJ$51,$AY$51))/($G$103+0.005))*$E$19)+(IF(($U$30+$X$30)>($U$35+$X$35),$AR$50,$BG$50)*(((($G$103*IF(($U$30+$X$30)>($U$35+$X$35),$AJ$51,$AY$51))/($G$103+0.005))-IF(($U$30+$X$30)>($U$35+$X$35),$AR$51,$BG$51))/(($G$103*IF(($U$30+$X$30)>($U$35+$X$35),$AJ$51,$AY$51))/($G$103+0.005)))*$G$103*$E$14))/$E$12 -> 2610.022218 | I102: mm2 | K102: As(max) = (0.85*f'c*b1*c*b+A's*(c-d')/c*ec*Es)/fy for c = ec*d/(ec+0.005) | AJ102: Tcr = | AK102: =0.33*(SQRT(E11))*(AK96^2/AK98)/1000000 -> 11.26949866 | AM102: kN-m | AO102: Tcr = 0.33sqrt(f'c)*(Acp^2/Pcp)
D103: ec | F103: = | G103: 0.003 | K103: ec = 0.003 (assumed concrete strain) | AJ103: Tu(limit) = | AK103: =AK93*0.083*SQRT(E11)*(AK96^2/AK98)*SQRT(1+((MAX(F47,X47)*1000)/(0.33*AK97*SQRT(E11))))/1000000 -> 2.125837247 | AM103: kN-m | AO103: Tu(limit) = f0.083*sqrt(f'c)*(Acp^2/Pcp)*sqrt(1+(Pu/(0.33Ag*sqrt(f'c)))
D104: e's | F104: = | G104: =$G$103*($G$94-IF(($U$30+$X$30)>($U$35+$X$35),$AR$51,$BG$51))/$G$94 -> 0.0008388138225 | K104: e's = ec*(c-d')/c | P104: =IF($G$104>=$E$12/$E$14,">= fy/Es, f's yields","< fy/Es, f's does not yield") -> < fy/Es, f's does not yield | AJ104: Tu(max) = | AK104: =SQRT(((((AK93*AK57*1000)/(E19*AJ38))^2)+((AK93*0.66*SQRT(E11))^2)+(2*AK93*AK57*AK93*0.66*SQRT(E11)*1000/(E19*AJ38))-((MAX(F45,X45)*1000/(E19*AJ38))^2))*((1.7^2*AK100^4)/(AK99^2)))/1000000 -> 17.22411268 | AM104: kN-m | AO104: Tu(max) = sqrt(((fVc/bd)^2+(f0.66sqrt(f'c))^2+(2fVc/bd)*f0.66sqrt(f'c)-(Vu/bd)^2)*(1.7^2*Aoh^4/Ph^2))
D105: f's | F105: = | G105: =IF($G$104*$E$14>=$E$12,$E$12,$G$104*$E$14) -> 167.7627645 | I105: Mpa | K105: f's = e's*Es | AJ105: At(prov) = | AK105: =MAX((AK78-MAX(AK65,AK80))/2,0) -> 0 | AM105: mm2 | AO105: At(prov) = (Av+t(used)-Av(req'd))/2
D106: As2 | F106: = | G106: =IF($G$105>0,IF(($U$30+$X$30)>($U$35+$X$35),$AR$50,$BG$50)*$G$105/$E$12,"N.A.") -> 994.5694982 | I106: mm2 | K106: As2 = A's*f's/fy for f's > 0 | AJ106: At(req'd) = | AK106: =IF(MAX(F46,X46)>=AK103,(MAX(F46,X46)*1000*P39)/(AK93*2*AK101*E13),0) -> 0 | AM106: mm2 | AO106: At(req'd) = for Tu >= Tu(limit) then Tu*s/(f*2*Ao*fy)
D107: As1 | F107: = | G107: =IF($G$105>0,IF(($U$30+$X$30)>($U$35+$X$35),$AJ$50,$AY$50)-$G$106,"N.A.") -> 1459.799762 | I107: mm2 | K107: As1 = As-As2 for f's > 0 | AJ107: At(min) = | AK107: =IF(MAX(F46,X46)>=AK103,MAX((((0.35*E19*P39)/E13)-G125)/2,(((0.062*SQRT(E11)*E19*P39)/E13)-G125)/2,0),0) -> 0 | AM107: mm2 | AO107: At(min) = for Tu >= Tu(limit) then max. of: ((0.35*b*s/(fy)-Av(req'd))/2 or 0
D108: et | F108: = | G108: =IF($G$94>=IF(($U$30+$X$30)>($U$35+$X$35),$AJ$51,$AY$51),0,$G$103*((IF(($U$30+$X$30)>($U$35+$X$35),$AJ$51,$AY$51)-IF($G$105>=0,$G$94,((IF(($U$30+$X$30)>($U$35+$X$35),$AJ$50,$AY$50)*$E$12)/(0.85*$E$11*$E$19)/$G$93)))/IF($G$105>=0,$G$94,((IF(($U$30+$X$30)>($U$35+$X$35),$AJ$50,$AY$50)*$E$12)/(0.85*$E$11*$E$19)/$G$93)))) -> 0.005317292259 | K108: et = ec*(d-c)/c = (fy/Es+ec)/(r/rb)-ec | U108: =IF($G$108>=0.005,">= 0.005, Tension-controlled",IF(AND($G$108>$E$12/$E$14,$G$108<0.005),"Transition section",IF($G$108<=$E$12/$E$14,"<= fy/Es, Compression-controlled"))) -> >= 0.005, Tension-controlled | AJ108: Al(req'd) = | AK108: =IF(MAX(F46,X46)>=AK103,(AK106/P39)*AK99*(E13/E12),0) -> 0 | AM108: mm2 | AO108: Al(req'd) = for Tu >= Tu(limit) then At(req'd)/s*Ph*(fys/fy)
D109: f | F109: = | G109: =IF($G$108>=0.005,0.9,IF(AND($G$108>$E$12/$E$14,$G$108<0.005),0.65+0.25*($G$108-$E$12/$E$14)/(0.005-$E$12/$E$14),IF($G$108<=$E$12/$E$14,0.65))) -> 0.9 | K109: f = 0.65+0.25*(et-fy/Es)/(0.005-fy/Es) <= 0.90 | AJ109: Al(min) = | AK109: =IF(MAX(F46,X46)>=AK103,((0.42*SQRT(E11)*AK96)/E12)-(MAX((AK106/P39),((0.175*E19)/E13))*AK99*(E13/E12)),0) -> 0 | AM109: mm2 | AO109: Al(min) = for Tu >= Tu(limit) then 0.42*SQRT*(f'c)*Acp/(fy) - (max. of: 0.175*b/(fys) or At(req'd)) /s)*Ph
D110: fMn | F110: = | G110: =IF($G$105<=0,$G$109*(IF(($U$30+$X$30)>($U$35+$X$35),$AJ$50,$AY$50)*$E$12*(IF(($U$30+$X$30)>($U$35+$X$35),$AJ$51,$AY$51)-(0.5*IF(($U$30+$X$30)>($U$35+$X$35),$AJ$50,$AY$50)*$E$12/(0.85*$E$11*$E$19))))/1000000,$G$109*((($G$107*$E$12)*(IF(($U$30+$X$30)>($U$35+$X$35),$AJ$51,$AY$51)-($G$95/2)))+(IF(($U$30+$X$30)>($U$35+$X$35),$AR$50,$BG$50)*$G$105*(IF(($U$30+$X$30)>($U$35+$X$35),$AJ$51,$AY$51)-IF(($U$30+$X$30)>($U$35+$X$35),$AR$51,$BG$51))))/1000000) -> 236.1992823 | I110: kN-m | K110: =IF($G$110>$X$43,"> Mu = "&$X$43&" kN-m, O.K.","< Mu = "&$X$43&" kN-m, Failed!") -> > Mu = 159 kN-m, O.K.
AH111: =IF(AND(MAX(F45,X45)>0,MAX(F46,X46)>0),"For Combined Shear and Torsion:","") -> 
C112: SHEAR CAPACITY CHECKS | AJ112: =IF(AND($D$14>0,$D$15>0),"Total (Av+t) =","") -> Total (Av+t) = | AK112: =IF(AND(MAX(F45,X45)>0,MAX(F46,X46)>0),G125+(2*AK106),"") ->  | AM112: mm2 | AO112: Total (Av+t) = Av(req'd)+2*At(req'd)
D113: @ 2H for Seismic Provision for transverse Reinforcements per Sec.21.5.3.2 | AJ113: =IF(AND($D$14>0,$D$15>0),"Total (Av+t)(min) =","") -> Total (Av+t)(min) = | AK113: =IF(AND(MAX(F45,X45)>0,MAX(F46,X46)>0),MAX(0.062*SQRT(E11)*E19*P39/E13,0.35*E19*P39/E13),"") ->  | AM113: mm2 | AO113: Total (Av+2t)(min) = 0.35*b*s/fy or 0.062sqrt(f'c)*b*s/fy
D114: S(max)= smallest of ==> | K114: S(max) = d/4
K115: S(max) = 8db (smallest longitudinal bar) | AH115: CRACK CONTROL
D116: S(max) | F116: = | G116: =AK86 -> 80.20833333 | I116: mm.o.c. | K116: S(max) = 24db (diameter of hoop bar) | AI116: LEFT SUPPORT
G117: =IF($G$116>$I$39,"> "&$I$39&"mm, O.K.","< "&$I$39&"mm, N.G.") -> < 85mm, N.G. | K117: S(max) = 300mm | AJ117: Es = | AK117: =$E$14 -> 200000 | AO117: Es = modulus of elasticity for steel
AJ118: Ec = | AK118: =$E$15 -> 30094.68392 | AO118: Ec = 57*SQRT(f'c*1000)
D119: For Shear Reinforcements | AJ119: n = | AK119: =$AK$117/$AK$118 -> 6.645691995 | AO119: n = Es/Ec
D120: fVc | F120: = | G120: =MAX($AK$57,$AK$72) -> 52.38556017 | I120: kN | K120: fVc = 0.17*l*SQRT(f'c)bd | AJ120: fs = | AK120: =$F$44*1000000/(IF(($C$30+$F$30)>($C$35+$F$35),$G$67,$G$67)*IF(($C$30+$F$30)>($C$35+$F$35),$AJ$25,$AY$25)*(1-SQRT(2*IF(($C$30+$F$30)>($C$35+$F$35),$G$67,$G$67)/($E$19*IF(($C$30+$F$30)>($C$35+$F$35),$AJ$25,$AY$25))*$AK$119+(IF(($C$30+$F$30)>($C$35+$F$35),$G$67,$G$67)/($E$19*IF(($C$30+$F$30)>($C$35+$F$35),$AJ$25,$AY$25))*$AK$119)^2)-IF(($C$30+$F$30)>($C$35+$F$35),$G$67,$G$67)/($E$19*IF(($C$30+$F$30)>($C$35+$F$35),$AJ$25,$AY$25))*$AK$119)/3) -> 1834.198253 | AO120: fs = Ma/(As*d*(1-(SQRT(2*As/(b*d)*n+(As/(b*d)*n)^2)-As/(b*d)*n)/3))
D121: fVs | F121: = | G121: =MAX($AK$59,AK74) -> 44.70879045 | I121: kN | K121: fVs = f*fy*d*Av(stirrup)/s >= 0 | AJ121: fs(used) = | AK121: =MIN($AK$120,(2/3)*$E$12) -> 276 | AO121: fs(used) = minimum of: fs and 2/3*fy
D122: fVn | F122: = | G122: =MAX($AK$61,$AK$76) -> 97.09435062 | I122: kN | K122: =IF($G$122>=$F$45,">=Vu = "&FIXED($F$45,2, )&" kN, O.K.","<Vu ="&$F$45&" kN, not O.K.") -> <Vu =150 kN, not O.K. | AJ122: s(max) = | AK122: =MIN((380*280/$AK$121)-(2.5*($E$21+$N$39)),300*280/$AK$121) -> 260.5072464 | AO122: s(max) = minimum of: 380*280/fs(used)-2.5*Cc and 300*280/fs(used)
D123: fVs(max) | F123: = | G123: =MAX($AK$62,$AK$77) -> 203.3792336 | I123: kN | K123: =IF($F$45-$G$120<=$G$123,">= Vu-(phi)Vc = "&ROUND(MAX($F$45-$G$120,0),2)&" kN, O.K.","< Vu-(phi)Vc = "&ROUND(MAX($F$45-$G$120,0),2)&" kN, not O.K.") -> >= Vu-(phi)Vc = 97.61 kN, O.K.
D124: Av(prov) | F124: = | G124: =$AK$63 -> 157.0796327 | I124: mm2
D125: Av(req'd) | F125: = | G125: =MAX($AK$65,$AK$80) -> 388.9708559 | I125: mm2 | K125: =IF($G$125>$G$124,"> Av(prov) = "&FIXED($G$124,2, )&" , N.G.","<= Av(prov) = "&FIXED($G$124,2, )&" mm^2, O.K.") -> > Av(prov) = 157.08 , N.G. | AI125: MIDSPAN
D126: Av(min) | F126: = | G126: =MAX($AK$64,$AK$79) -> 67.12453911 | I126: mm2 | K126: =IF($G$126>$G$124,"> Av(prov) = "&FIXED($G$124,2, )&" mm^2, N.G.","<= Av(prov) = "&FIXED($G$124,2, )&" mm^2, O.K.") -> <= Av(prov) = 157.08 mm^2, O.K. | AJ126: Es = | AK126: =$E$14 -> 200000 | AO126: Es = modulus of elasticity for steel
D127: s(max) | F127: = | G127: =MAX($AK$66,$AK$81) -> 160.4166667 | I127: mm | K127: =IF($F$45>$AK$57/2,IF($P$39<=$G$127,">= s = "&$P$39&" mm, O.K.","< s = "&$P$39&" mm, N.G."),"mm") -> < s = 350 mm, N.G. | AJ127: Ec = | AK127: =$E$15 -> 30094.68392 | AO127: Ec = 57*SQRT(f'c*1000)
AJ128: n = | AK128: =$AK$126/$AK$127 -> 6.645691995 | AO128: n = Es/Ec
D129: For Torsion Reinforcements | AJ129: fs = | AK129: =$O$44*1000000/($AJ$37*$AJ$38*(1-SQRT(2*$AJ$37/($E$19*$AJ$38)*$AK$128+($AJ$37/($E$19*$AJ$38)*$AK$128)^2)-$AJ$37/($E$19*$AJ$38)*$AK$128)/3) -> 655.1448618 | AO129: fs = Ma/(As*d*(1-(SQRT(2*As/(b*d)*n+(As/(b*d)*n)^2)-As/(b*d)*n)/3))
D130: Tc | F130: = | G130: =AK103 -> 2.125837247 | I130: kN-m | K130: =IF($G$130<MAX($F$46,$X$46),"< "&FIXED(MAX($F$46,$X$46),2)&" kN-m, must consider torsion!","< "&FIXED(MAX($F$46,$X$46),2)&" kN-m, torsion need not to be considered!") -> < 0.00 kN-m, torsion need not to be considered! | AJ130: fs(used) = | AK130: =MIN($AK$129,(2/3)*$E$12) -> 276 | AO130: fs(used) = minimum of: fs and 2/3*fy
D131: Tumax | F131: = | G131: =IF(MAX($F$46,$X$46)<$AK$103,"N.A.",AK104) -> N.A. | I131: kN-m | K131: =IF(MAX(F46,X46)>=G130,IF(MAX(F46,X46)=0,"",IF(G131<MAX(F46,X46),"< Tu = "&MAX(F46,X46)&" kN-m, increase section!",">= Tu = "&MAX(F46,X46)&" kN-m, O.K.")),"") ->  | AJ131: s(max) = | AK131: =MIN((380*280/$AK$130)-(2.5*($E$22+$N$39)),300*280/$AK$130) -> 260.5072464 | AO131: s(max) = minimum of: 380*280/fs(used)-2.5*Cc and 300*280/fs(used)
D132: Atprov | F132: = | G132: N.A. | I132: mm2 | K132: (Av+t(used)-Av(req'd))/2
D133: Atreq'd | F133: = | G133: N.A. | I133: mm2 | K133: =IF(MAX(F46,X46)>=G130,IF(G133>(G124-G125)/2,"> At(prov) = "&MAX(ROUND((G124-G125)/2,2),0)&" mm^2, N.G.","<= At(prov) = "&MAX(ROUND((G124-G125)/2,2),0)&" mm^2, O.K."),"") ->  | AI133: RIGHT SUPPORT
D134: Atmin | F134: = | G134: N.A. | I134: mm2 | K134: =IF(MAX(F46,X46)>=G130,IF(G134>(G124-G125)/2,"> At(prov) = "&ROUND((G124-G125)/2,2)&" mm^2, N.G.","<= At(prov) = "&ROUND((G124-G125)/2,2)&" mm^2, O.K."),"") ->  | AJ134: Es = | AK134: =$E$14 -> 200000 | AO134: Es = modulus of elasticity for steel
D135: Alreq'd | F135: = | G135: N.A. | I135: mm2 | K135: =IF(MAX(F46,X46)>=G130,IF(G135<G136,"< Al(min) = "&ROUND(G136,2)&" mm^2, thus use Al(min)",">= Al(min) = "&ROUND(G136,2)&" mm^2, thus use Al(req'd)"),"") ->  | AJ135: Ec = | AK135: =$E$15 -> 30094.68392 | AO135: Ec = 57*SQRT(f'c*1000)
D136: Almin | F136: = | G136: N.A. | I136: mm2 | K136: =IF(MAX(F46,X46)>=G130,IF(G136>=G135,">= Al(req'd) = "&ROUND(G135,2)&" mm^2, thus use Al(min)","< Al(req'd) = "&ROUND(G135,2)&" mm^2, thus use Al(req'd)"),"") ->  | AJ136: n = | AK136: =$AK$134/$AK$135 -> 6.645691995 | AO136: n = Es/Ec
D137: Alprov | F137: = | G137: =(2*PI()*0.25*M30^2)+(2*PI()*0.25*M35^2) -> 1963.495408 | I137: mm2 | K137: =IF(MAX(F46,X46)>=G130,IF(G137>=MAX(G135,G136),"add'l web bars are not required!","provide add'l "&ROUND(MAX(G135,G136)-G137,2)&" mm^2 web bars!"),"add'l web bars are not required!") -> add'l web bars are not required! | AJ137: fs = | AK137: =$X$44*1000000/(IF(($U$30+$X$30)>($U$35+$X$35),$G$107,$G$107)*IF(($U$30+$X$30)>($U$35+$X$35),$AJ$51,$AY$51)*(1-SQRT(2*IF(($U$30+$X$30)>($U$35+$X$35),$G$107,$G$107)/($E$19*IF(($U$30+$X$30)>($U$35+$X$35),$AJ$51,$AY$51))*$AK$136+(IF(($U$30+$X$30)>($U$35+$X$35),$G$107,$G$107)/($E$19*IF(($U$30+$X$30)>($U$35+$X$35),$AJ$51,$AY$51))*$AK$136)^2)-IF(($U$30+$X$30)>($U$35+$X$35),$G$107,$G$107)/($E$19*IF(($U$30+$X$30)>($U$35+$X$35),$AJ$51,$AY$51))*$AK$136)/3) -> 1016.796698 | AO137: fs = Ma/(As*d*(1-(SQRT(2*As/(b*d)*n+(As/(b*d)*n)^2)-As/(b*d)*n)/3))
AJ138: fs(used) = | AK138: =MIN($AK$137,(2/3)*$E$12) -> 276 | AO138: fs(used) = minimum of: fs and 2/3*fy
D139: =IF(AND(MAX(F46,X46)>0,MAX(F45,X45)>0),"For Combined Shear and Torsion:","") ->  | AJ139: s(max) = | AK139: =MIN((380*280/$AK$138)-(2.5*($E$21+$N$39)),300*280/$AK$138) -> 260.5072464 | AO139: s(max) = minimum of: 380*280/fs(used)-2.5*Cc and 300*280/fs(used)
D140: Total (Av+t) | H140: = | I140: =IF(AND($F$46>0,$X$46>0,$F$45>0,$X$45>0),$AK$112,"N.A.") -> N.A. | K140: mm2 | M140: =IF(AND(MAX(F46,X46)>0,MAX(F45,X45)>0),IF(I140>G124,"> Av+t(prov) = "&FIXED(G124,2)&" mm^2, N.G.","<= Av+t(prov) = "&FIXED(G124,2)&" mm^2, O.K."),"") -> 
D141: Total (Av+t)min | H141: = | I141: =IF(AND($F$46>0,$X$46>0,$F$45>0,$X$45>0),$AK$113,"N.A.") -> N.A. | K141: mm2 | M141: =IF(AND(MAX(F45,X45)>0,MAX(F46,X46)>0),IF(I141>G124,"> Av+t(prov) = "&FIXED(G124,2)&" mm^2, N.G.","<= Av+t(prov) = "&FIXED(G124,2)&" mm^2, O.K."),"") -> 
C143: CRACK CONTROL
D144: Es | F144: = | G144: =E14 -> 200000 | I144: MPa | K144: Steel Modulus of Elasticity
D145: Ec | F145: = | G145: 30094.68392 | I145: MPa | K145: Ec = 4700*SQRT(f'c)
D146: n | F146: = | G146: =G144/G145 -> 6.645691995 | K146: n = Es/Ec
D148: LEFT SUPPORT
D149: fs | F149: = | G149: =$AK$120 -> 1834.198253 | I149: MPa | K149: fs = Ma/(As*d*(1-(SQRT(2*As/(b*d)*n+(As/(b*d)*n)^2)-As/(b*d)*n)/3))
D150: fs(used) | F150: = | G150: =$AK$121 -> 276 | I150: MPa | K150: fs(used) = minimum of: fs and 2/3*fy
D151: s(max) | F151: = | G151: =$AK$122 -> 260.5072464 | I151: mm | K151: s(max) = minimum of: 380*280/fs(used)-2.5*Cc and 300*280/fs(used)
D152: s(min) | F152: = | G152: 25 | I152: mm
D153: s(act) | F153: = | G153: =($E$19-(2*$E$23)-(2*$N$39))/$C$30 -> 33.33333333 | I153: mm | K153: =IF(AND(G153>=G152,G153<=G151),"s(min) <= s(act) <= s(max), O.K.!",IF(AND(G153<G152,G153<G151),"s(min) > s(act) < s(max), not O.K.!",IF(AND(G153<G152,G153>G151),"s(min) > s(act) > s(max), not O.K.!","s(min) < s(act) > s(max), not O.K.!"))) -> s(min) <= s(act) <= s(max), O.K.!
D155: MIDSPAN
D156: fs | F156: = | G156: =$AK$129 -> 655.1448618 | I156: MPa | K156: fs = Ma/(As*d*(1-(SQRT(2*As/(b*d)*n+(As/(b*d)*n)^2)-As/(b*d)*n)/3))
D157: fs(used) | F157: = | G157: =$AK$130 -> 276 | I157: MPa | K157: fs(used) = minimum of: fs and 2/3*fy
D158: s(max) | F158: = | G158: =$AK$131 -> 260.5072464 | I158: mm | K158: s(max) = minimum of: 380*280/fs(used)-2.5*Cc and 300*280/fs(used)
D159: s(min) | F159: = | G159: 25 | I159: mm
D160: s(act) | F160: = | G160: =($E$19-(2*$E$23)-(2*$N$39))/$L$35 -> 33.33333333 | I160: mm | K160: =IF(AND(G160>=G159,G160<=G158),"s(min) <= s(act) <= s(max), O.K.!",IF(AND(G160<G159,G160<G158),"s(min) > s(act) < s(max), not O.K.!",IF(AND(G160<G159,G160>G158),"s(min) > s(act) > s(max), not O.K.!","s(min) < s(act) > s(max), not O.K.!"))) -> s(min) <= s(act) <= s(max), O.K.!
D162: RIGHT SUPPORT
D163: fs | F163: = | G163: =$AK$137 -> 1016.796698 | I163: MPa | K163: fs = Ma/(As*d*(1-(SQRT(2*As/(b*d)*n+(As/(b*d)*n)^2)-As/(b*d)*n)/3))
D164: fs(used) | F164: = | G164: =$AK$138 -> 276 | I164: MPa | K164: fs(used) = minimum of: fs and 2/3*fy
D165: s(max) | F165: = | G165: =$AK$139 -> 260.5072464 | I165: mm | K165: s(max) = minimum of: 380*280/fs(used)-2.5*Cc and 300*280/fs(used)
D166: s(min) | F166: = | G166: 25 | I166: mm
D167: s(act) | F167: = | G167: =($E$19-(2*$E$23)-(2*$N$39))/$U$30 -> 50 | I167: mm | K167: =IF(AND(G167>=G166,G167<=G165),"s(min) <= s(act) <= s(max), O.K.!",IF(AND(G167<G166,G167<G165),"s(min) > s(act) < s(max), not O.K.!",IF(AND(G167<G166,G167>G165),"s(min) > s(act) > s(max), not O.K.!","s(min) < s(act) > s(max), not O.K.!"))) -> s(min) <= s(act) <= s(max), O.K.!

Sheet graph (hidden)
A1: For Graph
A2: Space | B2: =(B29-B10)/(beam!$L$30-1) -> 90 | C2: =(B29-B10)/(beam!$L$35-1) -> 45 | D2: =IF(beam!$O$30<1,0,(B29-B10)/(beam!$O$30-1)) -> 45 | E2: =IF(beam!$O$35<1,0,(B29-B10)/(beam!$O$35-1)) -> 90 | L2: Space | M2: =(M29-M10)/(beam!C30-1) -> 45 | N2: =(M29-M10)/(beam!C35-1) -> 90 | O2: =IF(beam!F30<1,0,(M29-M10)/(beam!$F$30-1)) -> 18 | P2: =IF(beam!F35<1,0,(M29-M10)/(beam!$F$35-1)) -> 90
B3: 0 | M3: 0
B4: 0 | M4: 0
A5: Section-x | B5: =B3-beam!$E$19/2 -> -100 | C5: =B3+beam!$E$19/2 -> 100 | D5: =B3+beam!$E$19/2 -> 100 | E5: =B3-beam!$E$19/2 -> -100 | F5: =B3-beam!E$19/2 -> -100 | L5: Section-x | M5: =M3-beam!$E$19/2 -> -100 | N5: =M3+beam!$E$19/2 -> 100 | O5: =M3+beam!$E$19/2 -> 100 | P5: =M3-beam!$E$19/2 -> -100 | Q5: =M3-beam!P$19/2 -> 0
A6: Section-y | B6: =B4+beam!$E$20/2 -> 200 | C6: =B4+beam!$E$20/2 -> 200 | D6: =B4-beam!$E$20/2 -> -200 | E6: =B4-beam!$E$20/2 -> -200 | F6: =B4+beam!$E$20/2 -> 200 | L6: Section-y | M6: =M4+beam!$E$20/2 -> 200 | N6: =M4+beam!$E$20/2 -> 200 | O6: =M4-beam!$E$20/2 -> -200 | P6: =M4-beam!$E$20/2 -> -200 | Q6: =M4+beam!$E$20/2 -> 200
A7: Link-x | B7: =B5+beam!$E$23 -> -60 | C7: =C5-beam!$E$23 -> 60 | D7: =D5-beam!$E$23 -> 60 | E7: =E5+beam!$E$23 -> -60 | F7: =B7 -> -60 | L7: Link-x | M7: =M5+beam!$E$23 -> -60 | N7: =N5-beam!$E$23 -> 60 | O7: =O5-beam!$E$23 -> 60 | P7: =P5+beam!$E$23 -> -60 | Q7: =M7 -> -60
A8: Link-y | B8: =B6-beam!$E$21 -> 160 | C8: =C6-beam!$E$21 -> 160 | D8: =D6+beam!$E$21 -> -160 | E8: =E6+beam!$E$21 -> -160 | F8: 160 | L8: Link-y | M8: =M6-beam!$E$21 -> 160 | N8: =N6-beam!$E$21 -> 160 | O8: =O6+beam!$E$21 -> -160 | P8: =P6+beam!$E$21 -> -160 | Q8: 160
A9: Bars | B9: x | C9: y | D9: x | E9: y | F9: x | G9: y | L9: Bars | M9: x | N9: y | O9: x | P9: y | Q9: x | R9: y
B10: =B7+15 -> -45 | C10: =C8-15 -> 145 | D10: =IF(beam!$O$30<1,B10,B7+15) -> -45 | E10: =IF(beam!$O$30<1,C10,C8-30-beam!$R$30) -> 105 | F10: =IF(beam!$O$35<2,"",D10) -> -45 | G10: 0 | M10: =M7+15 -> -45 | N10: =N8-15 -> 145 | O10: =IF(beam!$F$30<1,M10,M7+15) -> -45 | P10: =IF(beam!$F$30<1,N10,N8-30-beam!$I$30) -> 105 | Q10: =IF(beam!$F$35<2,"",O10) -> -45 | R10: 0
B11: =MIN($B$29,$B10+$B$2) -> 45 | C11: =C10 -> 145 | D11: =MIN($D$29,$D10+$D$2) -> 0 | E11: =E10 -> 105 | F11: =D11 -> 0 | G11: =G10 -> 0 | M11: =MIN($B$29,$M10+$M$2) -> 0 | N11: =N10 -> 145 | O11: =MIN($D$29,$O10+$O$2) -> -27 | P11: =P10 -> 105 | Q11: =O11 -> -27 | R11: =R10 -> 0
B12: 45 | C12: 145 | D12: 45 | E12: 105 | F12: 45 | G12: 0 | M12: 45 | N12: 145 | O12: -9 | P12: 105 | Q12: -9 | R12: 0
B13: 45 | C13: 145 | D13: 45 | E13: 105 | F13: 45 | G13: 0 | M13: 45 | N13: 145 | O13: 9 | P13: 105 | Q13: 9 | R13: 0
B14: 45 | C14: 145 | D14: 45 | E14: 105 | F14: 45 | G14: 0 | M14: 45 | N14: 145 | O14: 27 | P14: 105 | Q14: 27 | R14: 0
B15: 45 | C15: 145 | D15: 45 | E15: 105 | F15: 45 | G15: 0 | M15: 45 | N15: 145 | O15: 45 | P15: 105 | Q15: 45 | R15: 0
B16: 45 | C16: 145 | D16: 45 | E16: 105 | F16: 45 | G16: 0 | M16: 45 | N16: 145 | O16: 45 | P16: 105 | Q16: 45 | R16: 0
B17: 45 | C17: 145 | D17: 45 | E17: 105 | F17: 45 | G17: 0 | M17: 45 | N17: 145 | O17: 45 | P17: 105 | Q17: 45 | R17: 0
B18: 45 | C18: 145 | D18: 45 | E18: 105 | F18: 45 | G18: 0 | M18: 45 | N18: 145 | O18: 45 | P18: 105 | Q18: 45 | R18: 0
B19: 45 | C19: 145 | D19: 45 | E19: 105 | F19: 45 | G19: 0 | M19: 45 | N19: 145 | O19: 45 | P19: 105 | Q19: 45 | R19: 0
B20: 45 | C20: 145 | D20: 45 | E20: 105 | F20: 45 | G20: 0 | M20: 45 | N20: 145 | O20: 45 | P20: 105 | Q20: 45 | R20: 0
B21: 45 | C21: 145 | D21: 45 | E21: 105 | F21: 45 | G21: 0 | M21: 45 | N21: 145 | O21: 45 | P21: 105 | Q21: 45 | R21: 0
B22: 45 | C22: 145 | D22: 45 | E22: 105 | F22: 45 | G22: 0 | M22: 45 | N22: 145 | O22: 45 | P22: 105 | Q22: 45 | R22: 0
B23: 45 | C23: 145 | D23: 45 | E23: 105 | F23: 45 | G23: 0 | M23: 45 | N23: 145 | O23: 45 | P23: 105 | Q23: 45 | R23: 0
B24: 45 | C24: 145 | D24: 45 | E24: 105 | F24: 45 | G24: 0 | M24: 45 | N24: 145 | O24: 45 | P24: 105 | Q24: 45 | R24: 0
B25: 45 | C25: 145 | D25: 45 | E25: 105 | F25: 45 | G25: 0 | M25: 45 | N25: 145 | O25: 45 | P25: 105 | Q25: 45 | R25: 0
B26: 45 | C26: 145 | D26: 45 | E26: 105 | F26: 45 | G26: 0 | M26: 45 | N26: 145 | O26: 45 | P26: 105 | Q26: 45 | R26: 0
B27: 45 | C27: 145 | D27: 45 | E27: 105 | F27: 45 | G27: 0 | M27: 45 | N27: 145 | O27: 45 | P27: 105 | Q27: 45 | R27: 0
B28: 45 | C28: 145 | D28: 45 | E28: 105 | F28: 45 | G28: 0 | M28: 45 | N28: 145 | O28: 45 | P28: 105 | Q28: 45 | R28: 0
B29: =$C$7-15 -> 45 | C29: =15-$C$8 -> -145 | D29: =IF(beam!O35<1,B29,$C$7-15) -> 45 | E29: =IF(beam!O35<1,C29,beam!R35+30-$C$8) -> -105 | F29: 45 | G29: 0 | M29: =$N$7-15 -> 45 | N29: =15-$N$8 -> -145 | O29: =IF(beam!Z35<1,M29,$C$7-15) -> 45 | P29: =IF(beam!Z35<1,N29,beam!AC35+30-$C$8) -> -145 | Q29: 45 | R29: 0
B30: =MAX($B$10,$B29-$C$2) -> 0 | C30: =C29 -> -145 | D30: =MAX($D$10,$D29-$E$2) -> -45 | E30: =E29 -> -105 | F30: -45 | G30: =G29 -> 0 | M30: =MAX($M$10,$M29-$N$2) -> -45 | N30: =N29 -> -145 | O30: =MAX($D$10,$D29-$E$2) -> -45 | P30: =P29 -> -145 | Q30: -45 | R30: =R29 -> 0
B31: -45 | C31: -145 | D31: -45 | E31: -105 | F31: -45 | G31: 0 | M31: -45 | N31: -145 | O31: -45 | P31: -145 | Q31: -45 | R31: 0
B32: -45 | C32: -145 | D32: -45 | E32: -105 | F32: -45 | G32: 0 | M32: -45 | N32: -145 | O32: -45 | P32: -145 | Q32: -45 | R32: 0
B33: -45 | C33: -145 | D33: -45 | E33: -105 | F33: -45 | G33: 0 | M33: -45 | N33: -145 | O33: -45 | P33: -145 | Q33: -45 | R33: 0
B34: -45 | C34: -145 | D34: -45 | E34: -105 | F34: -45 | G34: 0 | M34: -45 | N34: -145 | O34: -45 | P34: -145 | Q34: -45 | R34: 0
B35: -45 | C35: -145 | D35: -45 | E35: -105 | F35: -45 | G35: 0 | M35: -45 | N35: -145 | O35: -45 | P35: -145 | Q35: -45 | R35: 0
B36: -45 | C36: -145 | D36: -45 | E36: -105 | F36: -45 | G36: 0 | M36: -45 | N36: -145 | O36: -45 | P36: -145 | Q36: -45 | R36: 0
B37: -45 | C37: -145 | D37: -45 | E37: -105 | F37: -45 | G37: 0 | M37: -45 | N37: -145 | O37: -45 | P37: -145 | Q37: -45 | R37: 0
B38: -45 | C38: -145 | D38: -45 | E38: -105 | F38: -45 | G38: 0 | M38: -45 | N38: -145 | O38: -45 | P38: -145 | Q38: -45 | R38: 0
B39: -45 | C39: -145 | D39: -45 | E39: -105 | F39: -45 | G39: 0 | M39: -45 | N39: -145 | O39: -45 | P39: -145 | Q39: -45 | R39: 0
B40: -45 | C40: -145 | D40: -45 | E40: -105 | F40: -45 | G40: 0 | M40: -45 | N40: -145 | O40: -45 | P40: -145 | Q40: -45 | R40: 0
B41: -45 | C41: -145 | D41: -45 | E41: -105 | F41: -45 | G41: 0 | M41: -45 | N41: -145 | O41: -45 | P41: -145 | Q41: -45 | R41: 0
B42: -45 | C42: -145 | D42: -45 | E42: -105 | F42: -45 | G42: 0 | M42: -45 | N42: -145 | O42: -45 | P42: -145 | Q42: -45 | R42: 0
B43: -45 | C43: -145 | D43: -45 | E43: -105 | F43: -45 | G43: 0 | M43: -45 | N43: -145 | O43: -45 | P43: -145 | Q43: -45 | R43: 0
B44: -45 | C44: -145 | D44: -45 | E44: -105 | F44: -45 | G44: 0 | M44: -45 | N44: -145 | O44: -45 | P44: -145 | Q44: -45 | R44: 0
B45: -45 | C45: -145 | D45: -45 | E45: -105 | F45: -45 | G45: 0 | M45: -45 | N45: -145 | O45: -45 | P45: -145 | Q45: -45 | R45: 0
B46: -45 | C46: -145 | D46: -45 | E46: -105 | F46: -45 | G46: 0 | M46: -45 | N46: -145 | O46: -45 | P46: -145 | Q46: -45 | R46: 0
B47: -45 | C47: -145 | D47: -45 | E47: -105 | F47: -45 | G47: 0 | M47: -45 | N47: -145 | O47: -45 | P47: -145 | Q47: -45 | R47: 0
